Cogmind - Beta 12 --- EXPLORER MODE // 2024.01.29 @ 02:19:28 Player: daffie Result: Destroyed by Y-54 Guardian with Flak Gun Performance ------------- Evolutions (3) 1500 Regions Visited (10) 2000 Robots Destroyed (197) 985 Value Destroyed (5485) 5485 Prototype IDs (47) 940 Alien Tech Used (0) 0 Bonus (672) 672 TOTAL SCORE: 11582 Bonus ------- High Alert Combat Kills 306 Follower Combat Kills 338 Aligned with FarCom 300 Friendly Fire -272 Cogmind --------- Core Integrity 0/700 Matter 258/300 Energy 1355/1600 System Corruption 10% Temperature Cool (14) Movement Flying (280) Ox4 Location -7/Recycling Parts ------- > --- POWER (1) -------- (None) > --- PROPULSION (5) --- Flying Airjet-Gravmag Exoskeleton > --- UTILITY (6) ------ Scrap Engine Cargo Storage Unit Superbattery Experimental Core Analyzer > --- WEAPON (2) ------- Gatling Laser > --- INVENTORY (30) --- Experimental Heat Sink Makeshift Trap Scanner Improved Target Analyzer Advanced Weapon Cycler System Purifier Thief Drone Bay (3/3) Army-in-a-Box (30/30) AS-neutralizer No. 17b AWS/EX-DEC Gatling Laser Gatling Laser AWS/Thermal Peak State ------------ > --- POWER ------------ Reinforced Fission Core > --- PROPULSION ------- Titanium Leg Improved Carbon-fiber Leg Makeshift Leg Advanced Myomer Leg Advanced Myomer Leg > --- UTILITY ---------- Cargo Storage Unit Advanced Terrain Scan Processor Experimental Core Analyzer Hacking Suite System Shield > --- WEAPON ----------- 8R-AWN's Boregun 8R-AWN's Boregun > --- INVENTORY -------- Heavy Deuterium Engine Experimental Heat Sink Superbattery Gravity Neutralizer Makeshift Trap Scanner Improved Target Analyzer Advanced Weapon Cycler Hardened Medium Armor Plating EX Chip 2 System Purifier Thief Drone Bay Army-in-a-Box AS-neutralizer No. 17b AWS/EX-DEC AWS/Thermal Flak Cannon Flak Cannon Concussive RPG [Rating: 92] Favorites ----------- Power Heavy Ion Engine Engine Heavy Ion Engine Power Core Reinforced Fission Core Reactor Cold Fusion Reactor Propulsion Advanced Myomer Leg Treads Light Treads Leg Advanced Myomer Leg Wheel Wheel Hover Unit Cooled Airjet Flight Unit Constructs Utility Cargo Storage Unit Device Disposable Heat Sink Storage Cargo Storage Unit Processor Experimental Core Analyzer Hackware EX Chip 2 Protection Hardened Medium Armor Plating Weapon 8R-AWN's Boregun Energy Gun Improved Medium Laser Energy Cannon Beam Cannon Ballistic Gun 8R-AWN's Boregun Ballistic Cannon Flak Cannon Launcher Concussive RPG Build | -11 -10 -10 -9 -9 -9 -8 -8 -7 -7 -7 ------- Run | Jun Mat Min Mat Min Exi Min Mat Fac Sto Rec Slots Evolved 7 | . 1 . 2 . . . 2 2 . . Power . | . . . . . . . . . . . Propulsion 3 | . 1 . 1 . . . 1 . . . Utility 4 | . . . 1 . . . 1 2 . . Weapon . | . . . . . . . . . . . Parts Attached 163 | 9 19 1 24 9 36 . 12 12 37 4 Power 8 | 1 2 . . . 2 . . 1 2 . Engine 5 | 1 2 . . . 1 . . . 1 . Core 2 | . . . . . 1 . . 1 . . Reactor 1 | . . . . . . . . . 1 . Propulsion 64 | 4 4 . 11 8 12 . 2 3 19 1 Treads 4 | . . . . . 4 . . . . . Leg 30 | 2 4 . 7 . 8 . 1 3 5 . Wheel 11 | 2 . . 4 5 . . . . . . Hover 18 | . . . . 3 . . 1 . 14 . Flight 1 | . . . . . . . . . . 1 Utility 44 | 2 5 . 3 1 15 . 3 5 7 3 Device 22 | . 3 . 3 1 9 . 1 . 3 2 Storage 8 | 1 2 . . . 4 . . . . 1 Processor 3 | . . . . . 2 . . 1 . . Hackware 6 | . . . . . . . 1 4 1 . Protection 5 | 1 . . . . . . 1 . 3 . Artifact . | . . . . . . . . . . . Weapon 47 | 2 8 1 10 . 7 . 7 3 9 . Energy Gun 24 | 2 6 . 5 . 3 . . . 8 . Energy Cannon 7 | . 2 . 3 . 2 . . . . . Ballistic Gun 10 | . . 1 2 . 2 . 3 2 . . Ballistic Cannon 4 | . . . . . . . 3 1 . . Launcher 2 | . . . . . . . 1 . 1 . Special Weapon . | . . . . . . . . . . . Impact Weapon . | . . . . . . . . . . . Slashing Weapon . | . . . . . . . . . . . Piercing Weapon . | . . . . . . . . . . . Special Melee Weapon . | . . . . . . . . . . . Unidentified Prototypes 23 | . 2 . 3 1 11 . 1 . 4 1 Parts Lost 17 | . . . . 1 . . 1 1 14 . Power 1 | . . . . . . . . . 1 . Propulsion 8 | . . . . 1 . . 1 1 5 . Utility 5 | . . . . . . . . . 5 . Weapon 3 | . . . . . . . . . 3 . Highest Loss Streak 2 | . . . . 1 . . 1 1 2 . To Critical Strikes . | . . . . . . . . . . . Average Slot Usage (%) 86 | . 93 100 98 79 91 80 82 91 77 48 Engine 6 | . 12 12 10 10 8 10 8 1 . . Core 1 | . . . . . 1 . . 5 3 . Leg 25 | . 32 37 29 . 26 40 34 34 16 . Wheel 4 | . 2 . 10 14 12 . . . . . Hover 3 | . . . . 14 . . . . 14 9 Device 7 | . 13 12 18 10 8 . . . 4 10 Storage 8 | . 4 12 10 10 9 10 8 7 7 10 Processor 5 | . . . . . 4 10 8 12 8 7 Hackware 3 | . . . . . . . 6 15 5 . Protection 1 | . 2 . . . . . 1 . 4 . Energy Gun 4 | . 11 . 7 10 1 10 1 . 6 7 Energy Cannon 3 | . 13 17 8 . 1 . . . . . Ballistic Gun 6 | . . 7 4 10 16 . 1 8 1 . Ballistic Cannon 1 | . . . . . . . 10 5 . . Naked Turns . | . . . . . . . . . . . Heaviest Build 184 | 19 35 36 39 37 163 161 169 173 184 149 Greatest Support 124 | 32 45 39 64 64 112 100 124 115 107 32 Greatest Overweight (x) 13 | . 2 . 12 3 5 1 1 1 13 6 Average Overweight (x) . | . . . . . . 1 1 1 2 4 Largest Inventory Capacity 30 | 10 30 15 15 15 30 30 30 30 30 30 Average Capacity 22 | 6 7 15 15 15 23 30 30 30 30 30 Most Carried 30 | . 14 15 15 14 25 24 27 26 30 30 Average Carried 17 | . 4 14 13 12 15 24 25 23 24 19 Final Capacity 30 | 10 15 15 15 15 30 30 30 30 30 30 Final Carried 30 | . 14 15 11 13 24 24 27 25 30 19 Scrap Engine Consumption 15 | . . . . . . . . . . 15 Constructs Created 1 | . . . . . . . . . . 1 Constructs Modified 5 | . . . . . . . . . . 5 Class Distribution -------------------- 61% | Hacker-Mutant 34% | Hauler-Mutant 3% | Scavenger-Mutant Dominant Class ---------------- Hacker-Mutant | -10/Materials Hacker-Mutant | -10/Mines Hacker-Mutant | -9/Materials Hacker-Mutant | -9/Mines Hauler-Mutant | -9/Exiles Hauler-Mutant | -8/Mines Hauler-Mutant | -8/Materials Hacker-Mutant | -7/Factory Hacker-Mutant | -7/Storage Hauler-Mutant | -7/Recycling Resources | -11 -10 -10 -9 -9 -9 -8 -8 -7 -7 -7 ----------- Run | Jun Mat Min Mat Min Exi Min Mat Fac Sto Rec Matter Collected 4047 | 159 307 14 328 133 604 . 615 1067 773 47 Remotely . | . . . . . . . . . . . Salvage Created 8229 | 62 406 31 1268 331 420 39 1077 1799 2631 165 Parts 479 | 2 26 4 78 24 19 2 79 112 128 5 Haulers Intercepted 18 | . 2 . 5 . . . 5 . 6 . Recyclers Shooed 4 | . . . 2 . . . . 2 . . Parts Field Recycled . | . . . . . . . . . . . Retrieved Matter . | . . . . . . . . . . . Parts Self-Destructed . | . . . . . . . . . . . Prevented . | . . . . . . . . . . . Kills | -11 -10 -10 -9 -9 -9 -8 -8 -7 -7 -7 ------- Run | Jun Mat Min Mat Min Exi Min Mat Fac Sto Rec Combat Hostiles Destroyed 115 | . 8 2 18 6 2 2 18 15 42 2 Guns 81 | . 6 . 9 6 1 2 8 14 33 2 Cannons 21 | . 2 2 6 . 1 . 9 1 . . AOE 4 | . . . . . . . . . 4 . Classes Destroyed 19 | 1 4 . 5 3 1 . 2 2 1 . Worker 9 | . . . 1 . . . 1 6 1 . Builder 11 | . . . 1 . . . 1 7 2 . Tunneler 4 | . . . . 3 . . . 1 . . Hauler 18 | . 2 . 5 . . . 5 . 6 . Recycler 13 | 1 . . 3 2 . . . 6 . 1 Mechanic 3 | . . . . . . . . 1 2 . Operator 4 | . . . 1 . . . . 2 1 . Watcher 17 | . 3 . 4 . . . 5 3 2 . Swarmer 29 | . 2 2 7 3 . 2 3 2 8 . Grunt 46 | . 6 . 6 . . . 8 4 22 . Brawler 3 | . . . 1 . . . . . 1 1 Duelist 1 | . . . . . . . 1 . . . Protector 2 | . . . . . . . . . 2 . Sentry 21 | . . . 5 . . . 5 4 7 . Demolisher 2 | . . . . 2 . . . . . . Hunter 4 | . . . . . . . 1 3 . . Programmer 5 | . . . . . . . . 2 2 1 Zionite 4 | . . . . . 4 . . . . . Assembled 2 | . . . . 1 1 . . . . . Best Kill Streak 11 | 1 3 2 4 3 2 2 11 8 11 2 Combat Bots Only 11 | . 2 2 3 3 1 2 4 2 11 2 Max Kills in Single Turn 3 | 1 1 1 2 2 1 1 1 3 2 1 Gunslinging 1 | . . . 1 1 . . . . . . Exploded 2 | . . . . . . . . . 2 . Melee . | . . . . . . . . . . . Uniques/NPCs Destroyed 4 | . . . . . 4 . . . . . EX-DEC (-9/Exiles) EX-BIN (-9/Exiles) EX-HEX (-9/Exiles) 8R-AWN (-9/Exiles) Combat | -11 -10 -10 -9 -9 -9 -8 -8 -7 -7 -7 -------- Run | Jun Mat Min Mat Min Exi Min Mat Fac Sto Rec Damage Taken 4893 | . 231 9 369 99 211 5 308 844 2782 35 Core 897 | . 33 5 49 23 32 . 53 124 575 3 Absorbed by Shields . | . . . . . . . . . . . Core Remaining (%) 87 | 100 . 84 . . . 74 90 . . . Volleys Fired 375 | 2 20 4 62 16 33 . 39 77 114 8 Largest 2 | 2 2 2 2 2 2 . 2 2 2 1 Hottest 160 | 80 130 120 136 79 136 . 88 88 160 80 Shots Fired 724 | 4 40 8 124 32 66 2 92 154 195 7 Gun 583 | 4 30 1 75 32 56 2 44 138 194 7 Cannon 140 | . 10 7 49 . 10 . 48 16 . . Launcher 1 | . . . . . . . . . 1 . Special . | . . . . . . . . . . . Kinetic 390 | . . 1 25 16 56 . 75 154 63 . Thermal 158 | 2 28 7 61 16 10 . . . 27 7 Explosive 1 | . . . . . . . . . 1 . Electromagnetic 175 | 2 12 . 38 . . 2 17 . 104 . Robot Hit Streak 81 | 4 26 4 24 6 34 3 19 15 81 15 Robot Miss Streak 7 | . 6 1 3 1 3 1 5 7 4 1 Penetration Max 2 | . . . . . . . 1 2 2 . Secondary Targets 5 | . 1 . 2 1 . . . . 1 . Max Gunslinging Chain 1 | . 1 . 1 1 . . . . 1 . Autonomous 74 | . . . . . . 2 17 . 55 . Shots Hit Robots 539 | 4 31 4 92 18 47 2 77 92 165 7 Core Hits 414 | 2 32 4 38 15 23 2 75 89 125 9 Critical Kills 41 | . . . 1 . 5 . 6 22 7 . Critical Parts Destroyed 38 | . . . . . 8 . 3 23 4 . Critical Strikes 88 | . . . 2 2 13 . 9 45 17 . Burn 3 | . . . 1 2 . . . . . . Meltdown 1 | . . . 1 . . . . . . . Destroy 80 | . . . . . 13 . 9 45 13 . Corrupt 4 | . . . . . . . . . 4 . Melee Attacks . | . . . . . . . . . . . Impact . | . . . . . . . . . . . Slashing . | . . . . . . . . . . . Piercing . | . . . . . . . . . . . Sneak Attacks . | . . . . . . . . . . . Combat Hostiles . | . . . . . . . . . . . Follow-up Attacks . | . . . . . . . . . . . Damage Inflicted 11945 | 47 510 87 1847 294 850 28 1466 2289 4316 211 Guns 8940 | 47 386 18 1005 294 665 28 676 1764 3846 211 Cannons 2055 | . 124 69 674 . 185 . 790 204 9 . Explosions 813 | . . . 168 . . . . 268 377 . Melee . | . . . . . . . . . . . Ramming 137 | . . . . . . . . 53 84 . Kinetic 5003 | . . 18 298 160 665 . 1069 1968 825 . Thermal 2882 | 22 350 69 962 134 185 . . . 949 211 Explosive 103 | . . . 66 . . . . . 37 . Electromagnetic 3811 | 25 160 . 521 . . 28 397 268 2412 . Impact 9 | . . . . . . . . . 9 . Slashing . | . . . . . . . . . . . Piercing . | . . . . . . . . . . . Highest Corruption 10 | . . . . . . . . 1 10 10 Average Corruption 3 | . . . . . . . . 1 2 10 Corruption Purged 1 | . . . . . . . . . 1 . Corruption Blocked . | . . . . . . . . . . . Effects 35 | . . . . . . . . 3 17 15 Message Errors 6 | . . . . . . . . 1 3 2 Matter Fused 12 | . . . . . . . . 1 4 7 Heat Flow Errors 2 | . . . . . . . . . 1 1 Energy Discharges 3 | . . . . . . . . . 2 1 Data Loss (minor) 9 | . . . . . . . . 1 5 3 Misfires 2 | . . . . . . . . . 2 . Weapon Failures 1 | . . . . . . . . . . 1 Overload Shots . | . . . . . . . . . . . Overflow Damage 26 | . . . . . 20 . . . 6 . Projectiles 20 | . . . . . 20 . . . . . Explosions 6 | . . . . . . . . . 6 . Melee . | . . . . . . . . . . . Knockbacks 10 | . . . . . . . 9 1 . . Impact 1 | . . . . . . . . 1 . . Kinetic 9 | . . . . . . . 9 . . . Secondary . | . . . . . . . . . . . Self-Inflicted Damage 222 | . . . 78 . 74 . . . 70 . Shots 5 | . . . 2 . 1 . . . 2 . Rammed 9 | . . . . . . . . . 9 . Targets Rammed 13 | . . . . . . . . 4 9 . Kicked 4 | . . . . . . . . 4 . . Crushed . | . . . . . . . . . . . Highest Temperature 613 | 54 232 189 36 10 60 . 72 30 613 244 Average Temperature 61 | 29 80 81 10 6 15 . 23 11 124 58 Received Heat Transfer 2096 | . 105 . 180 20 . . 207 207 1371 6 Effects 12 | . . . . . . . . . 12 . Shutdowns 1 | . . . . . . . . . 1 . Energy Bleed 2 | . . . . . . . . . 2 . Interference 2 | . . . . . . . . . 2 . Matter Decay 1 | . . . . . . . . . 1 . Short Circuit 1 | . . . . . . . . . 1 . Damage (major) 4 | . . . . . . . . . 4 . Damage (core) 1 | . . . . . . . . . 1 . Siege Activations . | . . . . . . . . . . . Robots Corrupted 8 | . . . 1 . . . 1 . 6 . Combat Hostiles 7 | . . . 1 . . . 1 . 5 . Parts Fried 37 | . 3 . 3 . . . 3 3 25 . Impact Corruptions . | . . . . . . . . . . . Robots Melted 2 | . . . 2 . . . . . . . Combat Hostiles 2 | . . . 2 . . . . . . . Parts Melted 19 | . . 1 10 5 . . . . 3 . Heat Transferred 5267 | 50 539 148 1839 444 333 . . . 1439 475 Parts Sabotaged . | . . . . . . . . . . . Parts Stolen . | . . . . . . . . . . . Parts Stripped . | . . . . . . . . . . . Power Chain Reactions 4 | . . . 2 . . . . . 2 . Missiles Intercepted . | . . . . . . . . . . . Alert | -11 -10 -10 -9 -9 -9 -8 -8 -7 -7 -7 ------- Run | Jun Mat Min Mat Min Exi Min Mat Fac Sto Rec Peak Influence 621 | 5 159 62 482 100 . 50 354 369 621 40 Initial 57 | . 2 2 . 31 . . 13 . 57 27 Average 131 | 2 37 26 260 34 . 35 113 74 327 27 Maximum Alert Level 2 | . . . 2 . . . 1 1 2 . Low Security (%) 72 | 100 100 100 31 100 . 100 80 89 16 100 Level 1 19 | . . . 52 . . . 19 10 47 . Level 2 8 | . . . 16 . . . . . 35 . Level 3 . | . . . . . . . . . . . Level 4 . | . . . . . . . . . . . Level 5 . | . . . . . . . . . . . High Security . | . . . . . . . . . . . Max Security . | . . . . . . . . . . . Squads Dispatched 23 | . . . 4 . . . 2 6 11 . Investigation 5 | . . . 3 . . . 1 1 . . Extermination 6 | . . . . . . . . 3 3 . Reinforcement 7 | . . . 1 . . . 1 2 3 . Assault 3 | . . . . . . . . . 3 . Garrison 2 | . . . . . . . . . 2 . Intercept . | . . . . . . . . . . . Searches Triggered . | . . . . . . . . . . . Construction Impeded 1 | . . . . . . . . . 1 . Haulers Reinforced 2 | . . . . . . . . 1 1 . Active Scanning Responses . | . . . . . . . . . . . Cargo Convoy Interrupts . | . . . . . . . . . . . Stealth | -11 -10 -10 -9 -9 -9 -8 -8 -7 -7 -7 --------- Run | Jun Mat Min Mat Min Exi Min Mat Fac Sto Rec Distress Signals 12 | . . . 4 . . . 3 3 2 . Communications Jammed . | . . . . . . . . . . . Distress Signals . | . . . . . . . . . . . Times Spotted 199 | . 13 2 30 16 23 1 25 27 59 3 Peak Tracking Total 20 | . 2 2 4 20 10 1 4 4 10 3 Tactical Retreats 18 | . . . . 2 11 . . 4 1 . Traps | -11 -10 -10 -9 -9 -9 -8 -8 -7 -7 -7 ------- Run | Jun Mat Min Mat Min Exi Min Mat Fac Sto Rec Traps Triggered 10 | . 4 . 2 . . . . 4 . . Indirectly 2 | . . . . . . . . 2 . . Trap Hack Attempts . | . . . . . . . . . . . Triggered . | . . . . . . . . . . . Disarmed . | . . . . . . . . . . . Reprogrammed . | . . . . . . . . . . . Reused . | . . . . . . . . . . . Traps Extracted . | . . . . . . . . . . . Installed . | . . . . . . . . . . . Triggered 1 | . . . . . . . . . 1 . Machines | -11 -10 -10 -9 -9 -9 -8 -8 -7 -7 -7 ---------- Run | Jun Mat Min Mat Min Exi Min Mat Fac Sto Rec Machines Disabled 37 | . 1 2 5 . 13 . 5 9 2 . Max in Single Turn 3 | . 1 1 2 . 3 . 2 3 1 . Garrison Access 1 | . . . . . . . . . 1 . Machines Repaired . | . . . . . . . . . . . Machines Sabotaged . | . . . . . . . . . . . Overloaded Fab Kills . | . . . . . . . . . . . Hacking | -11 -10 -10 -9 -9 -9 -8 -8 -7 -7 -7 --------- Run | Jun Mat Min Mat Min Exi Min Mat Fac Sto Rec Machines Accessed 30 | . 8 . 5 1 4 . 6 3 3 . Terminals 20 | . 7 . 3 . . . 4 3 3 . Fabricators . | . . . . . . . . . . . Repair Stations . | . . . . . . . . . . . Recycling Units 2 | . 1 . . . . . 1 . . . Scanalyzers 3 | . . . 2 . . . 1 . . . Garrison Access . | . . . . . . . . . . . Total Hacks 99 | . 20 . 16 1 27 . 19 10 6 . Successful 76 | . 15 . 13 1 27 . 12 5 3 . Failed 23 | . 5 . 3 . . . 7 5 3 . Catastrophic 6 | . 1 . 2 . . . 1 2 . . Database Lockouts . | . . . . . . . . . . . Manual 45 | . 16 . 7 . 1 . 14 6 1 . Terminals 61 | . 19 . 10 . . . 16 10 6 . Fabricators . | . . . . . . . . . . . Repair Stations . | . . . . . . . . . . . Recycling Units 2 | . 1 . . . . . 1 . . . Scanalyzers 8 | . . . 6 . . . 2 . . . Garrison Access . | . . . . . . . . . . . Terminal Hacks 53 | . 8 . 6 1 27 . 5 3 3 . Record 26 | . . . . . 26 . . . . . Prototype ID Bank 1 | . . . 1 . . . . . . . Open Door 4 | . . . . 1 . . . . 3 . Level Access Points 1 | . . . . . . . 1 . . . Branch Access Points 3 | . 1 . 1 . . . 1 . . . Emergency Access Points 2 | . 1 . . . . . 1 . . . Recall Assault 1 | . . . 1 . . . . . . . Hauler Manifests 2 | . . . 1 . . . . 1 . . Registered Components 2 | . . . . . . . 1 1 . . Registered Prototypes 1 | . . . . . . . 1 . . . Zone Layout 9 | . 6 . 2 . . . . 1 . . EX-Prototype ID Bank 1 | . . . . . 1 . . . . . Fabricator Hacks . | . . . . . . . . . . . Repair Station Hacks . | . . . . . . . . . . . Recycling Unit Hacks 2 | . 1 . . . . . 1 . . . Report Inventory 2 | . 1 . . . . . 1 . . . Scanalyzer 5 | . . . 4 . . . 1 . . . Insert Component 3 | . . . 2 . . . 1 . . . Analyze 2 | . . . 2 . . . . . . . Garrison Access Hacks . | . . . . . . . . . . . Unauthorized Hacks 16 | . 6 . 3 . . . 5 2 . . Terminals 13 | . 6 . 1 . . . 4 2 . . Track 3 | . 2 . . . . . 1 . . . Botnet 9 | . 3 . 1 . . . 3 2 . . Operators 1 | . 1 . . . . . . . . . Fabricators . | . . . . . . . . . . . Repair Stations . | . . . . . . . . . . . Recycling Units . | . . . . . . . . . . . Scanalyzers 3 | . . . 2 . . . 1 . . . Extract 3 | . . . 2 . . . 1 . . . Garrison Access . | . . . . . . . . . . . Data Cores Recovered 1 | . . . . . . . . 1 . . Used . | . . . . . . . . . . . Hacking Detections 16 | . 5 . 3 . . . 4 3 1 . Full Trace Events 2 | . . . 1 . . . 1 . . . Feedback Events . | . . . . . . . . . . . Feedback Blocked . | . . . . . . . . . . . Robot Schematics Acquired . | . . . . . . . . . . . Robots Built . | . . . . . . . . . . . Authchips . | . . . . . . . . . . . Time . | . . . . . . . . . . . Total Robot Build Rating . | . . . . . . . . . . . Part Schematics Acquired 11 | . . . 10 . . . 1 . . . Parts Built . | . . . . . . . . . . . Authchips . | . . . . . . . . . . . Time . | . . . . . . . . . . . Total Part Build Rating . | . . . . . . . . . . . Parts Repaired . | . . . . . . . . . . . Time . | . . . . . . . . . . . Parts Recycled . | . . . . . . . . . . . Recycled Matter . | . . . . . . . . . . . Retrieved Matter . | . . . . . . . . . . . Retrieved Components . | . . . . . . . . . . . Parts Scanalyzed 2 | . . . 2 . . . . . . . Part Schematics Acquired 2 | . . . 2 . . . . . . . Parts Damaged . | . . . . . . . . . . . Bothacking | -11 -10 -10 -9 -9 -9 -8 -8 -7 -7 -7 ------------ Run | Jun Mat Min Mat Min Exi Min Mat Fac Sto Rec Used RIF Installer . | . . . . . . . . . . . Robots Hacked . | . . . . . . . . . . . Non-combat . | . . . . . . . . . . . Combat . | . . . . . . . . . . . Robot Hacks Applied . | . . . . . . . . . . . Relay Couplers Released . | . . . . . . . . . . . Fabnet Peak Effective % . | . . . . . . . . . . . Robots Rewired 1 | . . . . . . . . . 1 . Allies Hacked . | . . . . . . . . . . . Hacks Repelled . | . . . . . . . . . . . Allies | -11 -10 -10 -9 -9 -9 -8 -8 -7 -7 -7 -------- Run | Jun Mat Min Mat Min Exi Min Mat Fac Sto Rec Total Allies 8 | . . 3 . 2 . . . . 3 . Largest Group 3 | . . 3 3 2 . . . . 2 . Highest-Rated Group 62 | . . 40 40 49 . . . . 62 . Highest-Rated Ally 31 | . . 16 16 31 . . . . 31 . Total Orders 3 | . . . . 1 2 . . . . . RETURN 3 | . . . . 1 2 . . . . . Ally Attacks 226 | . . 2 71 3 132 . . . 18 . Total Damage 2715 | . . . 835 20 1541 . . . 319 . Kills 24 | . . . 10 . 12 . . . 2 . Allies Corrupted . | . . . . . . . . . . . Allies Melted . | . . . . . . . . . . . Turrets Deployed 1 | . . . . . 1 . . . . . Intel | -11 -10 -10 -9 -9 -9 -8 -8 -7 -7 -7 ------- Run | Jun Mat Min Mat Min Exi Min Mat Fac Sto Rec Robot Analysis Total . | . . . . . . . . . . . Derelict Logs Recovered . | . . . . . . . . . . . Drone Launches 25 | . . . . 3 22 . . . . . Drone Recoveries 25 | . . . . 3 22 . . . . . Exploration | -11 -10 -10 -9 -9 -9 -8 -8 -7 -7 -7 ------------- Run | Jun Mat Min Mat Min Exi Min Mat Fac Sto Rec Turns Passed 12111 | 73 1548 537 1254 1006 2167 293 1347 1709 1741 436 Spaces Moved 6385 | 52 1137 432 856 760 1078 145 608 723 566 28 Core 7 | 6 . . 1 . . . . . . . Treads 8 | . . . . . 8 . . . . . Legs 4513 | 20 1006 432 588 . 708 145 608 723 283 . Wheels 1172 | 26 131 . 267 386 362 . . . . . Hover 659 | . . . . 374 . . . . 283 2 Flight 26 | . . . . . . . . . . 26 Fastest Speed 50 | 50 100 120 100 80 80 200 192 192 142 280 Average Speed 153 | 101 117 120 114 120 159 200 193 195 228 319 Slowest Speed 826 | 120 260 120 650 235 560 200 200 197 826 413 Overloaded Moves 216 | . . . . . . . . . 216 . Propulsion Burnouts . | . . . . . . . . . . . Robots Hopped . | . . . . . . . . . . . Cave-ins Triggered . | . . . . . . . . . . . Exploration Rate (%) 61 | 6 99 86 81 99 94 47 52 20 83 14 Regions Visited 10 Branch Regions 6 Pre-discovered Areas 1 | . . 1 . . . . . . . . Known Exits Taken 10 | 1 1 1 1 1 1 1 1 1 1 . Unknown Exits Taken . | . . . . . . . . . . . Scrap Searched 1 | . . 1 . . . . . . . . Spaces Dug 3 | . . . . . . . . 3 . . Terrain Destroyed 244 | . . . 26 . 152 . 3 10 53 . Melee . | . . . . . . . . . . . Projectile 53 | . . . 1 . 17 . 1 5 29 . AOE 182 | . . . 25 . 135 . . . 22 . Terrain Rammed . | . . . . . . . . . . . Walls Destroyed . | . . . . . . . . . . . Machines Disabled . | . . . . . . . . . . . Actions | -11 -10 -10 -9 -9 -9 -8 -8 -7 -7 -7 --------- Run | Jun Mat Min Mat Min Exi Min Mat Fac Sto Rec Total 8057 | 64 1303 442 1008 814 1476 149 708 860 861 372 Wait 930 | . 101 4 41 21 261 5 39 38 104 316 Move 6375 | 51 1136 431 855 759 1077 144 607 722 565 28 Hop . | . . . . . . . . . . . Pick Up 55 | . 12 1 3 2 22 . 3 2 10 . Fast Attach 91 | 9 14 1 17 5 19 . 5 5 15 1 Attach 41 | . 2 . 3 2 11 . 6 2 14 1 Detach 27 | . 2 . 2 1 9 . 5 . 8 . Swap 31 | . 3 . 4 2 6 . 1 5 8 2 Drop 118 | 2 13 1 21 6 38 . 3 5 13 16 Fire 375 | 2 20 4 62 16 33 . 39 77 114 8 Melee . | . . . . . . . . . . . Ram 9 | . . . . . . . . . 9 . Kick 4 | . . . . . . . . 4 . . Crush . | . . . . . . . . . . . Escape Stasis . | . . . . . . . . . . . Rewire 1 | . . . . . . . . . 1 . Trap . | . . . . . . . . . . . Miscellaneous . | . . . . . . . . . . . Route ------- -11/Junkyard -10/Materials (discovered 4 exits: *Mat x3 / *Min) -10/Mines -9/Materials (discovered 5 exits: *Mat x3 / *Min x2) -9/Mines (discovered 4 exits: *Mat x2 / *Exi / [*Zio]) -9/Exiles -8/Mines -8/Materials (discovered 3 exits: *Fac x3) -7/Factory (discovered 2 exits: *Fac / *Sto) -7/Storage (discovered 2 exits: *Fac / *Rec) -7/Recycling History --------- Turn | Location | Event 21 | -11/Junkyard | Identified exit to Materials 21 | -11/Junkyard | Discovered exit to Materials (range 14) 74 | -11/Junkyard | Entered Materials 74 | -10/Materials | Evolved 1 slot: Propulsion x1 108 | -10/Materials | Identified exit to Mines 307 | -10/Materials | Build established: Hacker-Mutant 397 | -10/Materials | Identified exit to Materials 397 | -10/Materials | Discovered exit to Materials (range 5) 728 | -10/Materials | Discovered exit to Materials (range 7) 1247 | -10/Materials | Discovered exit to Materials (range 16) 1622 | -10/Materials | Entered Mines 1661 | -10/Mines | Assisted by bots powering up and referring to "LRC-V3" 1710 | -10/Mines | Received a Rocket Launcher from a helpful Derelict 1842 | -10/Mines | A weapon hastily lodged in a ceiling crevice suddenly fell to the ground 2134 | -10/Mines | Discovered exit to Materials (range 9) 2137 | -10/Mines | Learned location of Storage (-7) 2159 | -10/Mines | Entered Materials 2159 | -9/Materials | Accompanied by 3 allies 2159 | -9/Materials | Evolved 2 slots: Propulsion x1, Utility x1 2433 | -9/Materials | Identified exit to Mines 2644 | -9/Materials | Identified exit to Materials 2644 | -9/Materials | Discovered exit to Materials (range 16) 2797 | -9/Materials | Discovered exit to Materials (range 6) 3331 | -9/Materials | Discovered exit to Materials (range 15) 3413 | -9/Materials | Entered Mines 3422 | -9/Mines | Found the Drone Emporium 3432 | -9/Mines | Found Prototype Device 3433 | -9/Mines | Identified Thief Drone Bay 3505 | -9/Mines | A Derelict revealed a hidden shortcut to a safe place 3530 | -9/Mines | Assembled infested the area 3585 | -9/Mines | Discovered exit to Materials (range 5) 3745 | -9/Mines | Deemed a non-threat by the Exiles lab entrance 3747 | -9/Mines | Identified exit to Exiles 3747 | -9/Mines | Discovered exit to Exiles (range 5) 3986 | -9/Mines | Discovered exit to Materials (range 5) 4419 | -9/Mines | Entered Exiles 4439 | -9/Exiles | Met 8R-AWN 4452 | -9/Exiles | Met EX-HEX 4476 | -9/Exiles | Met EX-BIN 4488 | -9/Exiles | Aligned with FarCom system 4489 | -9/Exiles | Given EX-Vault access code 4513 | -9/Exiles | Opened EX-Vault 4521 | -9/Exiles | Found Prototype Energy Gun 4521 | -9/Exiles | Identified AWS/Thermal 4524 | -9/Exiles | Found Prototype Storage 4525 | -9/Exiles | Identified Superbattery 4535 | -9/Exiles | Found Prototype Device 4553 | -9/Exiles | Warned to stay clear of 0b10 Research branches 4577 | -9/Exiles | Met EX-DEC 4657 | -9/Exiles | Attacked by the Exiles 4657 | -9/Exiles | Allies destroyed EX-DEC 4663 | -9/Exiles | DAS Turret deployed 4670 | -9/Exiles | Found Prototype Processor 4686 | -9/Exiles | Found Prototype Energy Gun 4686 | -9/Exiles | Identified AWS/EX-DEC 4737 | -9/Exiles | Found Prototype Ballistic Gun 4737 | -9/Exiles | Identified 8R-AWN's Boregun 4739 | -9/Exiles | Found 8R-AWN's Boregun 4748 | -9/Exiles | Found Prototype Device 4748 | -9/Exiles | Identified AS-neutralizer No. 17b 4842 | -9/Exiles | Allies destroyed EX-BIN 4844 | -9/Exiles | Allies destroyed EX-HEX 4967 | -9/Exiles | Build established: Scavenger-Mutant 5040 | -9/Exiles | Destroyed 8R-AWN 5335 | -9/Exiles | Found Prototype Device 5335 | -9/Exiles | Identified System Purifier 5742 | -9/Exiles | Build established: Hauler-Mutant 6327 | -9/Exiles | Identified Army-in-a-Box 6327 | -9/Exiles | Identified Exp. Core Analyzer 6564 | -9/Exiles | Identified exit to Mines 6564 | -9/Exiles | Discovered exit to Mines (range 12) 6586 | -9/Exiles | Stole three prototypes: Superbattery, Army-in-a-Box, AWS/Thermal 6586 | -9/Exiles | Entered Mines 6841 | -8/Mines | Discovered exit to Materials (range 8) 6879 | -8/Mines | Entered Materials 6879 | -8/Materials | Evolved 2 slots: Propulsion x1, Utility x1 7282 | -8/Materials | Identified exit to Factory 7282 | -8/Materials | Discovered exit to Factory (range 12) 8226 | -8/Materials | Entered Factory 8226 | -7/Factory | Evolved 2 slots: Utility x2 8461 | -7/Factory | Identified exit to Factory 8461 | -7/Factory | Discovered exit to Factory (range 6) 8523 | -7/Factory | Build established: Hacker-Mutant 9869 | -7/Factory | Identified exit to Storage 9869 | -7/Factory | Discovered exit to Storage (range 12) 9935 | -7/Factory | Entered Storage 10033 | -7/Storage | Garrison activated, responded to threat 10696 | -7/Storage | Core integrity fell below 50% 10838 | -7/Storage | Met a pair of Derelict thieves 11117 | -7/Storage | Core integrity fell below 20% 11126 | -7/Storage | Destroyed 11 combat bots 11210 | -7/Storage | Build established: Hauler-Mutant 11299 | -7/Storage | Discovered exit to Factory (range 15) 11649 | -7/Storage | System corruption reached 10% 11666 | -7/Storage | Used back door to open Recycling access 11666 | -7/Storage | Identified exit to Recycling 11666 | -7/Storage | Discovered exit to Recycling (range 4) 11676 | -7/Storage | Entered Recycling 11677 | -7/Recycling | Found Scrap Engine 12112 | -7/Recycling | Destroyed by Y-54 Guardian with Flak Gun Last Messages --------------- Acquired 47 matter. System corrupted: Matter fused (-7). Scrap Engine modifies Flying Airjet-Gravmag Exoskeleton: Energy -0.5, Heat -1 Expanded to 4 slots (? T40 S32). System corrupted: Matter fused (-10). System corrupted: Energy discharge (-608). Scrap Engine modifies Flying Airjet-Gravmag Exoskeleton: Coverage -23. System corrupted: Matter fused (-7). TTCVXS9J3MFHP9WP3=OE : ,V GU1:&K System corrupted: Matter fused (-8). System corrupted: Component data lost. B-48 Gladiator springs to life. Y-54 Guardian springs to life. P-60 Hacker springs to life. Destroyed Shock Rifle. P-60 Hacker destroyed. B-48 Gladiator destroyed. R-06 Scavenger collects Rnf. Deuterium Engine. Map ----- +----------------------------------------------------+ | ????????????????????????????????????? | | ????????????????????????????????????? | | ????????????????????????????????????? | | ????????????????????????????????????? | | ????????????????????????????????????? | | ????????????????????????????????????? | | ????????????????????????????????????? | | ????????????????????????????????????? | | ????????????????????????????????????? | | ????????????????????????????????????? | | ?????????? ???????????????????????? | | ?????????# ???????????????????????? | | ?????????# ???????????????????????? | | ?????????# ???????????????????????? | | ?????????# ???????????????????????? | | ?????????# #??????????????????????? | | ?????????# #??????????????????????? | | ?????????# #??????????????????????? | | ?????????# #############??????????? | | ?????????# # % ! % #?????????? | | ?????????# # #?????????? | | ?????????# # % ! #?????????? | | ???????### # = [ #?????????? | | ???????#"" # #?????????? | | ???????#"Y r # ! #?????????? | | ???????#"" @# #?????????? | | ???????###/[Y# ! %#?????????? | | ?????????# %=+! [ #?????????? | | ???????### # #?????????? | | ???????#"" # #?????????? | | ???????#"T # #?????????? | | ???????#"" ##############?????????? | | ???????### #??????????????????????? | | ?????????# #??????????????????????? | | ?????????# #??????????????????????? | | ?????????# #????????#?????????????? | | ??#??????# #?????? #?????????????? | | ??# ????# #???? #?????????????? | | ??# ??# #?? #?????????????? | | ??# # % # #?????????????? | | ??# + + #?????????????? | | ??# # # #?????????????? | | ??# ??# #?? #?????????????? | | ??# ????# #????#####?????????????? | | ??#??????# #??????????????????????? | | ?????????# #??????????????????????? | | ?????????#####??????????????????????? | | ????????????????????????????????????? | | ????????????????????????????????????? | | ????????????????????????????????????? | +----------------------------------------------------+ Best States ------------- Heat Dissipation 60 Coolant Potential 50 Energy Generation 19 Energy Capacity 1600 Matter Stores 300 Matter Capacity 300 Sight Range 16 Terrain Scan Density 210 Additional Mass Support 12 Armor Coverage 375 Resistance: KI 55 Resistance: TH 35 Resistance: EX 35 Resistance: EM 35 Resistance: I 35 Resistance: S 35 Resistance: P 35 Evasion (%) 55 Core Analysis 8 Armor Integrity Analysis 40 Recoil Reduction 4 Offensive Hacking 30 Defensive Hacking 24 Item Schematics ----------------- Autogun | -9/Materials | Extracted EM Shotgun | -9/Materials | Extracted Mining Laser | -9/Materials | Extracted Lgt. Cannon | -9/Materials | Extracted Visual Processing Unit | -9/Materials | Extracted Disposable Heat Sink | -9/Materials | Extracted Signal Interpreter | -9/Materials | Extracted Adv. Beam Cannon | -9/Materials | Scanalyzed Cargo Storage Unit | -9/Materials | Scanalyzed Imp. Hover Unit | -9/Materials | Extracted Missile Launcher | -8/Materials | Extracted Robot Schematics ------------------ None Fabricated ------------ Nothing Alien Tech Used ----------------- None Achievements -------------- None Challenges ------------ None Game ------ Seed beanlard Manual? 1 Play Time 02:14:34 Cumulative 2501.0 hours Start 2024.01.28 @ 23:45:15 End 2024.01.29 @ 02:19:28 Sessions 1 Manual Loads 0 Difficulty Explorer Special Mode None Game No. 84 Rogue 0 Adventurer 0 Explorer 84 Win Type - Total 6 Types 3/0/1/2/0/0/0/0/0 Lore% 59 Gallery% 87 Achievement% 100 Wizard Run 0 Options --------- ASCII 0 Keyboard 0 Movement Mouse Keybinds 0 Fullscreen 0 Font 32/Smallcaps Map View 76x50 Tactical HUD 0 Map Filters NONE Filters NONE Steam 1 RUN: 54d216ce-58cb-49e5-9f83-f904b28db3cb